Cogmind - Beta 16 @@@ ROGUE MODE // 2025.12.28 @ 23:02:22 Player: tsintsir Result: Core destroyed Performance ------------- Evolutions (3) 1500 Regions Visited (13) 2600 Robots Destroyed (127) 635 Value Destroyed (5524) 5524 Prototype IDs (9) 180 Alien Tech Used (1) 200 Bonus (4330) 4330 TOTAL SCORE: 14969 Bonus ------- High Alert Combat Kills 464 Follower Combat Kills 766 Entered Garrisons 600 Used RIF Installer 2500 Cogmind --------- Core Integrity 0/700 Matter 127/300 Energy 94/100 System Corruption 2% Temperature Cool (0) Movement Flying (35) Location -6/Proximity Caves Parts ------- > --- POWER (1) -------- (None) > --- PROPULSION (3) --- VTOL Module > --- UTILITY (6) ------ Advanced Visual Processing Unit Improved Signal Interpreter Improved Melee Analysis Suite Relay Coupler [Grunt] (26) Relay Coupler [Grunt] (28) > --- WEAPON (3) ------- Great Maul > --- INVENTORY (5) ---- Light Nuclear Core Authchip [R/Combat] Autogun Remote Datajack Peak State ------------ > --- POWER ------------ Micro Nuclear Core > --- PROPULSION ------- Gravmag System Gravmag System Improved Airjet > --- UTILITY ---------- Advanced Visual Processing Unit Improved Signal Interpreter Improved Melee Analysis Suite Makeshift Light Armor Plating Authchip [R/Combat] Relay Coupler [Sentry] > --- WEAPON ----------- Great Maul Tearclaws > --- INVENTORY -------- Gravmag System Authchip [R/Combat] Relay Coupler [Swarmer] Relay Coupler [Grunt] Relay Coupler [Grunt] [Rating: 53] Favorites ----------- Power Heavy Ion Engine Engine Heavy Ion Engine Power Core Micro Nuclear Core Propulsion Improved Treads Treads Improved Treads Leg Aluminum Leg Hover Unit Gravmag System Flight Unit Flight Unit Utility Signal Interpreter Device Improved Sensor Array Storage Small Storage Unit Processor Signal Interpreter Hackware Authchip [R/Combat] Protection Medium Armor Plating Weapon Improved EM Shotgun Energy Gun Improved EM Shotgun Energy Cannon Light EM Pulse Cannon Ballistic Gun Improved Assault Rifle Ballistic Cannon Light Cannon Launcher Mini Grenade Launcher Special Weapon Mining Laser Impact Weapon Great Maul Slashing Weapon Tearclaws Special Melee Weapon Improved Datajack Build | -11 -10 -9 -9 -9 -8 -8 -7 -7 -7 -7 -7 -7 -6 ------- Run | Yrd Mat Mat Sto Gar Mat Gar Fac Gar Fac Low Low Zio Pro Slots Evolved 6 | . . 2 . . 2 . 2 . . . . . . Power . | . . . . . . . . . . . . . . Propulsion 1 | . . . . . . . 1 . . . . . . Utility 4 | . . 1 . . 2 . 1 . . . . . . Weapon 1 | . . 1 . . . . . . . . . . . Parts Attached 97 | 7 6 12 19 3 2 15 12 . 5 5 2 . 9 Power 11 | 1 . 2 3 1 . 2 1 . . . . . 1 Engine 8 | 1 . 2 3 1 . 1 . . . . . . . Core 3 | . . . . . . 1 1 . . . . . 1 Reactor . | . . . . . . . . . . . . . . Propulsion 28 | 2 2 6 2 . . 5 5 . 1 2 1 . 2 Treads 9 | . . 6 2 . . 1 . . . . . . . Leg 4 | 2 2 . . . . . . . . . . . . Wheel . | . . . . . . . . . . . . . . Hover 8 | . . . . . . . 5 . 1 2 . . . Flight 7 | . . . . . . 4 . . . . 1 . 2 Utility 28 | 2 1 1 3 1 2 6 4 . 3 2 . . 3 Device 3 | 1 . . . . . . . . 1 1 . . . Storage 1 | 1 . . . . . . . . . . . . . Processor 5 | . 1 . . . 2 . . . 2 . . . . Hackware 9 | . . . . . . 6 . . . . . . 3 Protection 10 | . . 1 3 1 . . 4 . . 1 . . . Artifact . | . . . . . . . . . . . . . . Weapon 30 | 2 3 3 11 1 . 2 2 . 1 1 1 . 3 Energy Gun 7 | 1 . . 5 . . . 1 . . . . . . Energy Cannon 3 | . 1 . 1 . . . 1 . . . . . . Ballistic Gun 8 | 1 . 3 3 . . . . . . . . . 1 Ballistic Cannon 3 | . 1 . . . . . . . . . 1 . 1 Launcher 1 | . . . 1 . . . . . . . . . . Special Weapon 4 | . 1 . . . . 1 . . 1 . . . 1 Impact Weapon 2 | . . . 1 . . 1 . . . . . . . Slashing Weapon 1 | . . . . . . . . . . 1 . . . Piercing Weapon . | . . . . . . . . . . . . . . Special Melee Weapon 1 | . . . . 1 . . . . . . . . . Unidentified Prototypes 10 | . . 1 5 . . . 3 . . . . . 1 Corrupted Parts 3 | . . 1 . . . 1 . . . 1 . . . System Corruption 9 | . . 1 . . . 1 . . . 7 . . . Parts Lost 22 | . . . 1 1 . 4 2 2 2 . . 1 9 Power 2 | . . . . . . . 1 . . . . 1 . Propulsion 8 | . . . . . . 2 . . 1 . . . 5 Utility 8 | . . . 1 1 . 1 1 1 . . . . 3 Weapon 4 | . . . . . . 1 . 1 1 . . . 1 Highest Loss Streak 3 | . . . 1 1 . 2 1 1 2 . . 1 3 To Critical Strikes . | . . . . . . . . . . . . . . Average Backups 6 | 1 7 7 7 7 5 6 4 4 4 4 5 5 4 Power . | . 1 1 1 . . . . . . . . . . Propulsion . | . . . . . . . . . . . 1 1 . Utility 3 | . 2 2 3 4 2 3 4 4 4 4 4 4 3 Weapon 1 | . 4 3 2 2 1 1 . . . . . . . Tool/Special . | . . . . . . . . . . . . . . Unused Backups 12 | . 3 1 3 1 1 2 . . . . . . 1 Power 2 | . . . 1 1 . . . . . . . . . Propulsion . | . . . . . . . . . . . . . . Utility 3 | . . . . . . 2 . . . . . . 1 Weapon 7 | . 3 1 2 . 1 . . . . . . . . Tool/Special . | . . . . . . . . . . . . . . Average Slot Usage (%) 92 | . 99 97 99 99 98 92 69 84 82 89 91 90 63 Engine 7 | . 14 11 11 11 9 9 1 . . . . . . Core 1 | . . . . . . . 2 7 7 7 7 5 . Treads 12 | . . 16 22 22 18 11 . . . . . . . Leg 2 | . 28 3 . . . . . . . . . . . Hover 5 | . . . . . . . 9 23 23 23 23 23 11 Device 3 | . 11 1 . . 9 4 . . 4 6 7 7 3 Storage 7 | . 14 11 11 11 9 6 . . . . . . . Processor 14 | . 1 11 11 11 17 18 15 15 18 23 23 23 23 Hackware 5 | . . . . . . 11 23 23 19 14 7 7 9 Protection 7 | . . 9 10 10 9 4 2 5 . . 7 7 3 Energy Gun 9 | . 7 2 15 22 17 11 . . . . . . . Energy Cannon 1 | . 4 2 2 . . . . . . . . . . Ballistic Gun 8 | . 2 26 11 10 9 6 . . . . . . . Impact Weapon 2 | . . . 1 . . 2 6 7 7 7 6 7 3 Slashing Weapon 1 | . . . . . . . . . . 4 7 7 3 Peak Build Rating 53 | 9 11 19 21 22 27 31 45 45 47 53 52 51 48 Average Rating 26 | 5 9 15 19 21 26 26 28 40 41 48 50 50 33 On Entrance 28 | . 9 9 18 21 21 27 22 45 38 38 51 51 47 Avg Prop Armor Cover (%) 6 | . . . . . . . . . . . . . 6 Naked Turns . | . . . . . . . . . . . . . . Heaviest Build 32 | 15 18 29 30 31 32 32 18 16 14 25 25 25 19 Greatest Support 46 | 20 20 46 46 43 43 43 27 27 27 27 27 27 27 Greatest Overweight (x) 2 | 1 . 1 . . . 1 2 . . . 1 . 2 Average Overweight (x) . | . . . . . . . . . . . . . . Largest Inventory Capacity 8 | 8 8 8 8 8 8 8 5 5 5 5 5 5 5 Average Capacity 6 | 7 8 8 8 8 8 7 5 5 5 5 5 5 5 Most Carried 8 | 3 8 8 8 8 6 8 5 4 5 5 5 5 5 Average Carried 6 | 1 7 7 7 7 5 6 4 4 4 4 5 5 4 Final Capacity 8 | 8 8 8 8 8 8 5 5 5 5 5 5 5 5 Final Carried 8 | 3 8 8 8 7 6 5 4 4 5 5 5 5 4 Class Distribution -------------------- 37% | Tank 15% | Mutant 15% | Scout 11% | Skirmisher 6% | Bothacker-Mutant 5% | Gladiator 4% | Commander-Tank 3% | Scavenger-Tank Dominant Class ---------------- Mutant | -10/Materials Tank | -9/Materials Tank | -9/Storage Tank | -9/Garrison Skirmisher | -8/Materials Skirmisher | -8/Garrison Bothacker-Mutant | -7/Factory Mutant | -7/Garrison Scout | -7/Factory Scout | -7/Lower Caves Scout | -7/Lower Caves Scout | -7/Zion Gladiator | -6/Proximity Caves Resources | -11 -10 -9 -9 -9 -8 -8 -7 -7 -7 -7 -7 -7 -6 ----------- Run | Yrd Mat Mat Sto Gar Mat Gar Fac Gar Fac Low Low Zio Pro Matter Collected 3130 | 243 170 818 743 156 59 312 181 37 . 140 22 . 249 Remotely . | . . . . . . . . . . . . . . Salvage Created 5050 | 77 228 1287 1469 696 150 624 259 74 58 15 . . 113 Parts 300 | 7 13 83 93 48 6 33 4 1 2 2 . . 8 Haulers Intercepted 6 | . 1 . 5 . . . . . . . . . . Recyclers Shooed 5 | . 1 3 . . 1 . . . . . . . . Parts Field Recycled . | . . . . . . . . . . . . . . Retrieved Matter . | . . . . . . . . . . . . . . Parts Self-Destructed 16 | . . . . . . . . . . 5 2 . 9 Prevented 2 | . . . . . . . . . . 2 . . . Parts Restored . | . . . . . . . . . . . . . . Kills | -11 -10 -9 -9 -9 -8 -8 -7 -7 -7 -7 -7 -7 -6 ------- Run | Yrd Mat Mat Sto Gar Mat Gar Fac Gar Fac Low Low Zio Pro Combat Hostiles Destroyed 94 | . 3 22 21 19 2 14 3 4 1 . . . 5 Melee 7 | . . . . . . . 2 2 . . . . 3 Guns 77 | . 2 21 20 19 2 12 . . . . . . 1 Cannons 3 | . 1 1 1 . . . . . . . . . . AOE 2 | . . . . . . 2 . . . . . . . Classes Destroyed 15 | 1 6 4 1 1 . . 1 . . 1 . . . Worker 7 | . . 3 3 . . . 1 . . . . . . Builder 4 | . 1 2 1 . . . . . . . . . . Tunneler 3 | 3 . . . . . . . . . . . . . Hauler 6 | . 1 . 5 . . . . . . . . . . Recycler 3 | . 1 2 . . . . . . . . . . . Mechanic 1 | . . . 1 . . . . . . . . . . Operator 3 | . 1 . 2 . . . . . . . . . . Watcher 4 | . . 1 2 . 1 . . . . . . . . Swarmer 24 | . 1 . 3 9 . 3 . 4 . . . . 4 Grunt 37 | . 2 13 5 7 . 10 . . . . . . . Brawler 3 | . . 2 . . . 1 . . . . . . . Sentry 29 | . . 7 13 3 2 . 3 . 1 . . . . Hunter 1 | . . . . . . . 1 . . . . . . Programmer 2 | . . . . 1 . . . . . . . . 1 Tinkerer 1 | . . . . . . . . . . 1 . . . Best Kill Streak 6 | 2 3 5 6 4 1 3 1 3 1 . . . 3 Combat Bots Only 5 | . 2 5 5 4 1 3 1 3 1 . . . 3 Max Kills in Single Turn 2 | 1 1 2 2 2 1 2 1 1 1 1 . . 1 Gunslinging 1 | . . . 1 1 . . . . . . . . . Exploded 1 | . . . . . . 1 . . . . . . . Melee 1 | . . . . . . . 1 1 . . . . 1 Uniques/NPCs Destroyed . | . . . . . . . . . . . . . . Combat | -11 -10 -9 -9 -9 -8 -8 -7 -7 -7 -7 -7 -7 -6 -------- Run | Yrd Mat Mat Sto Gar Mat Gar Fac Gar Fac Low Low Zio Pro Hostile Shots Fired 485 | . 14 75 62 41 6 49 38 54 39 4 1 13 89 Missed 152 | . 3 23 12 13 2 12 15 18 15 2 1 6 30 Hits 333 | . 11 52 50 28 4 37 23 36 24 2 . 7 59 Melee 5 | . . 4 . . . . . . . . . 1 . Projectile 328 | . 11 48 50 28 4 37 23 36 24 2 . 6 59 AOE 2 | . . . . 2 . . . . . . . . . Critical Strikes 7 | . . 4 1 1 . . . 1 . . . . . Damage Taken 5301 | . 201 727 772 449 94 638 560 518 282 36 . 87 937 Core 1258 | . 27 104 82 85 . 64 188 105 90 20 . . 493 Absorbed by Shields 34 | . . . . . . . . 34 . . . . . Regen/Repaired (Parts) 67 | . 19 . . . 48 . . . . . . . . Core Remaining (%) 77 | 100 89 . . 32 . 88 . . . . . . . Volleys Fired 350 | 3 30 58 88 66 8 59 5 . . . . . 33 Largest 3 | 2 2 3 3 3 3 3 1 . . . . . 1 Hottest 168 | 70 100 136 168 113 113 113 5 . . . . . 44 Shots Fired 701 | 6 58 173 199 117 22 88 5 . . . . . 33 Gun 597 | 6 36 165 153 117 22 74 . . . . . . 24 Cannon 50 | . 20 8 17 . . . . . . . . . 5 Launcher 23 | . . . 23 . . . . . . . . . . Special 31 | . 2 . 6 . . 14 5 . . . . . 4 Kinetic 347 | 3 28 160 78 25 8 16 . . . . . . 29 Thermal 47 | 3 30 8 6 . . . . . . . . . . Explosive 23 | . . . 23 . . . . . . . . . . Electromagnetic 261 | . . 5 92 92 14 58 . . . . . . . Robot Hit Streak 17 | 3 5 11 17 14 7 12 1 . . . . . 3 Robot Miss Streak 8 | 1 3 4 8 4 2 4 1 . . . . . 5 Penetration Max . | . . . . . . . . . . . . . . Secondary Targets 15 | . . 1 5 6 . 3 . . . . . . . Max Gunslinging Chain 2 | . . 1 2 2 . 1 . . . . . . . Shots Hit Robots 445 | 4 31 116 124 68 19 44 10 5 3 1 . . 20 Core Hits 210 | 3 12 54 63 36 8 27 1 2 . . . . 4 Critical Kills 5 | . . 1 1 . . 1 . 1 . . . . 1 Critical Parts Destroyed 11 | . . 2 . . . 1 4 1 2 . . . 1 Critical Strikes 20 | 1 2 4 1 . . 2 4 2 2 . . . 2 Burn 3 | 1 2 . . . . . . . . . . . . Destroy 7 | . . 4 1 . . 2 . . . . . . . Smash 10 | . . . . . . . 4 2 2 . . . 2 Melee Attacks 110 | . . . 35 12 . 14 12 11 4 4 . . 18 Impact 97 | . . . 35 . . 14 12 11 4 4 . . 17 Slashing 1 | . . . . . . . . . . . . . 1 Piercing . | . . . . . . . . . . . . . . Sneak Attacks 15 | . . . . 12 . . 2 . . 1 . . . Combat Hostiles . | . . . . . . . . . . . . . . Follow-up Attacks 1 | . . . . . . . . . . . . . 1 Damage Inflicted 8037 | 46 500 1910 2212 723 383 892 420 225 99 70 . . 557 Guns 5627 | 46 255 1765 1818 723 303 566 . . . . . . 151 Cannons 633 | . 245 145 243 . . . . . . . . . . Explosions 463 | . . . 151 . 80 232 . . . . . . . Melee 1314 | . . . . . . 94 420 225 99 70 . . 406 Ramming . | . . . . . . . . . . . . . . Kinetic 3490 | 22 317 1762 772 249 88 129 . . . . . . 151 Thermal 664 | 24 183 37 108 . 80 232 . . . . . . . Explosive 43 | . . . 43 . . . . . . . . . . Electromagnetic 2526 | . . 111 1289 474 215 437 . . . . . . . Impact 1314 | . . . . . . 94 420 225 99 70 . . 406 Slashing . | . . . . . . . . . . . . . . Piercing . | . . . . . . . . . . . . . . Highest Corruption 8 | . . 1 1 1 . 1 1 1 1 8 8 8 2 Average Corruption 2 | . . 1 1 1 . 1 1 1 1 7 8 8 1 Corruption Purged . | . . . . . . . . . . . . . . Corruption Blocked . | . . . . . . . . . . . . . . Effects 119 | . . 10 26 12 . 6 2 1 1 21 22 5 13 Message Errors 34 | . . 2 9 1 . 1 1 . . 5 8 2 5 Matter Fused 33 | . . 2 5 3 . 3 1 . 1 5 8 2 3 Heat Flow Errors 17 | . . 2 5 1 . 1 . . . 5 2 . 1 Energy Discharges 12 | . . 1 3 2 . . . 1 . 2 1 1 1 Parts Rejected 2 | . . . . . . 1 . . . . . . 1 Parts Fused 1 | . . 1 . . . . . . . . . . . Data Loss (minor) 12 | . . . 1 4 . . . . . 4 2 . 1 Data Loss (major) 2 | . . . 1 . . . . . . . . . 1 Misfires 4 | . . 2 1 1 . . . . . . . . . Alerts 2 | . . . 1 . . . . . . . 1 . . Overload Shots . | . . . . . . . . . . . . . . Overflow Damage 650 | . . . . . . 5 289 78 62 45 . . 171 Projectiles . | . . . . . . . . . . . . . . Explosions 5 | . . . . . . 5 . . . . . . . Melee 645 | . . . . . . . 289 78 62 45 . . 171 Knockbacks 2 | . . . . . . 1 . . . . . . 1 Impact 2 | . . . . . . 1 . . . . . . 1 Kinetic . | . . . . . . . . . . . . . . Secondary . | . . . . . . . . . . . . . . Self-Inflicted Damage 209 | . . . 69 . 34 106 . . . . . . . Shots 6 | . . . 2 . 1 3 . . . . . . . Rammed . | . . . . . . . . . . . . . . Targets Rammed . | . . . . . . . . . . . . . . Kicked . | . . . . . . . . . . . . . . Crushed . | . . . . . . . . . . . . . . Highest Temperature 334 | 9 201 190 334 266 132 237 51 4 . 234 266 . 229 Average Temperature 69 | 6 44 54 90 61 54 53 29 4 . 100 123 . 114 Received Heat Transfer 1323 | . 84 354 270 60 18 243 63 99 84 18 . . 30 Effects 3 | . . . 3 . . . . . . . . . . Shutdowns 1 | . . . 1 . . . . . . . . . . Energy Bleed 1 | . . . 1 . . . . . . . . . . Interference 1 | . . . 1 . . . . . . . . . . Siege Activations . | . . . . . . . . . . . . . . Martial Activations . | . . . . . . . . . . . . . . Shielding Activations . | . . . . . . . . . . . . . . Robots Disrupted . | . . . . . . . . . . . . . . Combat Hostiles . | . . . . . . . . . . . . . . Robots Corrupted 7 | . . . 1 . . . 2 2 1 . . . 1 Combat Hostiles 5 | . . . . . . . 1 2 1 . . . 1 Parts Fried 19 | . . . 9 1 1 . 5 1 1 . . . 1 Impact Corruptions 21 | . . . . . . . 7 4 2 1 . . 7 Robots Melted . | . . . . . . . . . . . . . . Combat Hostiles . | . . . . . . . . . . . . . . Parts Melted 5 | 3 2 . . . . . . . . . . . . Heat Transferred 1612 | 148 703 111 200 . 100 350 . . . . . . . Parts Sabotaged . | . . . . . . . . . . . . . . Parts Stolen . | . . . . . . . . . . . . . . Parts Stripped . | . . . . . . . . . . . . . . Power Chain Reactions 8 | . . . 3 . 2 3 . . . . . . . Alert | -11 -10 -9 -9 -9 -8 -8 -7 -7 -7 -7 -7 -7 -6 ------- Run | Yrd Mat Mat Sto Gar Mat Gar Fac Gar Fac Low Low Zio Pro Maximum Alert Level 4 | . . 1 2 4 2 3 2 2 1 . . . . Low Security (%) 33 | 100 100 86 31 . . . . . . . . . . Level 1 10 | . . 13 8 14 . 9 13 25 100 . . . . Level 2 39 | . . . 59 25 100 47 86 74 . . . . . Level 3 11 | . . . . 33 . 42 . . . . . . . Level 4 4 | . . . . 26 . . . . . . . . . Level 5 . | . . . . . . . . . . . . . . High Security . | . . . . . . . . . . . . . . Max Security . | . . . . . . . . . . . . . . Peak Influence 1216 | 5 55 232 575 1216 592 932 498 519 293 . . . . Initial 592 | . . . 89 297 592 303 489 348 272 . . . . Average 406 | 1 9 109 359 772 517 632 440 453 267 . . . . Influence Increases 4901 | 15 152 662 1289 989 113 729 295 191 81 120 45 . 220 Destroy 0b10 Robot/C 2360 | . 60 440 700 480 60 300 120 80 20 . . . 100 Destroy 0b10 Robot/NC 175 | 15 20 40 75 . 5 . 20 . . . . . . Destroy Leader 470 | . 22 142 184 20 32 20 40 . 10 . . . . Allied During Kill 212 | . . . 141 33 6 10 22 . . . . . . Successful Hack 110 | . 18 21 33 . . 7 25 . 6 . . . . Disable Machine 165 | . . 15 90 . . . 45 . 15 . . . . Anti-Garrison Action 650 | . . . . 300 . 300 . 50 . . . . . Destroy Structure 204 | . 2 4 36 51 10 77 8 16 . . . . . Partial Spotted 45 | . . . . 15 . 15 15 . . . . . . Lose Combat Pursuer 510 | . 30 . 30 90 . . . 45 30 120 45 . 120 Influence Decreases 4898 | 15 152 450 1043 231 862 264 729 170 327 315 123 . 217 Entered New Map 2029 | . . . 123 161 624 164 443 150 247 102 15 . . Time Decay 2359 | 15 152 450 700 . 238 . 246 . 50 213 108 . 187 Lost Part 150 | . . . 10 10 . 40 20 20 20 . . . 30 Lost Ally 360 | . . . 210 60 . 60 20 . 10 . . . . Squads Dispatched 16 | . . 4 8 . 1 . 3 . . . . . . Investigation 2 | . . 2 . . . . . . . . . . . Extermination 1 | . . . . . . . 1 . . . . . . Reinforcement 4 | . . 2 1 . . . 1 . . . . . . Assault 5 | . . . 3 . 1 . 1 . . . . . . Garrison 4 | . . . 4 . . . . . . . . . . Intercept . | . . . . . . . . . . . . . . Searches Triggered . | . . . . . . . . . . . . . . Construction Impeded . | . . . . . . . . . . . . . . Haulers Reinforced . | . . . . . . . . . . . . . . Active Scanning Responses . | . . . . . . . . . . . . . . Cargo Convoy Interrupts . | . . . . . . . . . . . . . . Alert ID Control Effect 1 | . . . . . . . . . . . . . 1 Stealth | -11 -10 -9 -9 -9 -8 -8 -7 -7 -7 -7 -7 -7 -6 --------- Run | Yrd Mat Mat Sto Gar Mat Gar Fac Gar Fac Low Low Zio Pro Distress Signals 8 | . . 3 4 . 1 . . . . . . . . Communications Jammed . | . . . . . . . . . . . . . . Distress Signals . | . . . . . . . . . . . . . . Times Spotted 191 | . 7 31 42 24 5 21 10 11 10 7 3 4 16 Peak Tracking Total 8 | . 4 5 7 8 2 3 2 8 7 4 3 4 3 Tactical Retreats 14 | . 1 . 1 1 . . . 1 1 2 1 . 6 Traps | -11 -10 -9 -9 -9 -8 -8 -7 -7 -7 -7 -7 -7 -6 ------- Run | Yrd Mat Mat Sto Gar Mat Gar Fac Gar Fac Low Low Zio Pro Traps Triggered 12 | . 2 2 . 2 . 3 1 2 . . . . . Indirectly . | . . . . . . . . . . . . . . Trap Hack Attempts . | . . . . . . . . . . . . . . Triggered . | . . . . . . . . . . . . . . Disarmed 14 | . . . 11 . . . 3 . . . . . . Reprogrammed . | . . . . . . . . . . . . . . Reused . | . . . . . . . . . . . . . . Traps Extracted . | . . . . . . . . . . . . . . Installed . | . . . . . . . . . . . . . . Triggered . | . . . . . . . . . . . . . . Machines | -11 -10 -9 -9 -9 -8 -8 -7 -7 -7 -7 -7 -7 -6 ---------- Run | Yrd Mat Mat Sto Gar Mat Gar Fac Gar Fac Low Low Zio Pro Machines Disabled 22 | . . 1 6 4 . 4 3 1 1 1 . . 1 Max in Single Turn 1 | . . 1 1 1 . 1 . 1 1 1 . . 1 Garrison Relay 9 | . . . . 4 . 4 . 1 . . . . . Machines Repaired . | . . . . . . . . . . . . . . Machines Dismantled . | . . . . . . . . . . . . . . Machines Sabotaged . | . . . . . . . . . . . . . . Overloaded Fab Kills . | . . . . . . . . . . . . . . Hacking | -11 -10 -9 -9 -9 -8 -8 -7 -7 -7 -7 -7 -7 -6 --------- Run | Yrd Mat Mat Sto Gar Mat Gar Fac Gar Fac Low Low Zio Pro Machines Accessed 44 | . 4 4 13 3 4 2 9 1 1 1 1 . 1 Terminals 32 | . 3 3 12 3 1 2 6 1 1 . . . . Fabricators . | . . . . . . . . . . . . . . Repair Stations 3 | . 1 . . . 1 . 1 . . . . . . Recycling Units . | . . . . . . . . . . . . . . Scanalyzers 3 | . . 1 . . 1 . 1 . . . . . . Garrison Access 3 | . . . 1 . 1 . 1 . . . . . . Total Hacks 91 | . 12 13 21 5 8 5 21 2 1 1 1 . 1 Successful 40 | . 6 4 12 . 5 1 8 . 1 1 1 . 1 Failed 49 | . 6 8 9 5 2 4 13 2 . . . . . Catastrophic 19 | . 4 2 4 3 1 . 4 1 . . . . . Database Lockouts 2 | . . 1 . . 1 . . . . . . . . Manual 58 | . 8 11 11 5 2 2 16 2 1 . . . . Terminals 70 | . 10 10 19 5 2 5 16 2 1 . . . . Fabricators . | . . . . . . . . . . . . . . Repair Stations 6 | . 2 . . . 2 . 2 . . . . . . Recycling Units . | . . . . . . . . . . . . . . Scanalyzers 7 | . . 3 . . 3 . 1 . . . . . . Garrison Access 5 | . . . 2 . 1 . 2 . . . . . . Terminal Hacks 21 | . 2 2 10 . . 1 3 . . 1 1 . 1 Record 1 | . . . . . . . . . . . . . 1 Part Schematic 1 | . . . 1 . . . . . . . . . . Robot Analysis 2 | . 1 . 1 . . . . . . . . . . Open Door 8 | . . . 5 . . 1 . . . 1 1 . . Level Access Points 1 | . . 1 . . . . . . . . . . . Terminal Index 4 | . 1 1 1 . . . 1 . . . . . . Fabricator Index 1 | . . . . . . . 1 . . . . . . Disarm Traps 3 | . . . 2 . . . 1 . . . . . . Fabricator Hacks . | . . . . . . . . . . . . . . Repair Station Hacks 4 | . 2 . . . 2 . . . . . . . . Scan Component 2 | . 1 . . . 1 . . . . . . . . Repair 2 | . 1 . . . 1 . . . . . . . . Recycling Unit Hacks . | . . . . . . . . . . . . . . Scanalyzer 3 | . . 1 . . 2 . . . . . . . . Retrieve Study 3 | . . 1 . . 2 . . . . . . . . Garrison Access Hacks 4 | . . . 1 . 1 . 2 . . . . . . Unlock Access 3 | . . . 1 . 1 . 1 . . . . . . Coupler Status 1 | . . . . . . . 1 . . . . . . Unauthorized Hacks 8 | . 2 1 1 . . . 3 . 1 . . . . Terminals 8 | . 2 1 1 . . . 3 . 1 . . . . Assimilate 4 | . 1 . . . . . 2 . 1 . . . . Operators 4 | . 1 1 1 . . . 1 . . . . . . Fabricators . | . . . . . . . . . . . . . . Repair Stations . | . . . . . . . . . . . . . . Recycling Units . | . . . . . . . . . . . . . . Scanalyzers . | . . . . . . . . . . . . . . Garrison Access . | . . . . . . . . . . . . . . Data Cores Recovered 3 | . 1 . 1 . . . 1 . . . . . . Used 1 | . . . . . . . 1 . . . . . . Hacking Detections 34 | . 3 4 9 3 3 2 9 1 . . . . . Full Trace Events . | . . . . . . . . . . . . . . Feedback Events . | . . . . . . . . . . . . . . Feedback Blocked . | . . . . . . . . . . . . . . Robot Schematics Acquired . | . . . . . . . . . . . . . . Robots Built . | . . . . . . . . . . . . . . Authchips . | . . . . . . . . . . . . . . Time . | . . . . . . . . . . . . . . Total Robot Build Rating . | . . . . . . . . . . . . . . Part Schematics Acquired 1 | . . . 1 . . . . . . . . . . Parts Built . | . . . . . . . . . . . . . . Authchips . | . . . . . . . . . . . . . . Time . | . . . . . . . . . . . . . . Total Part Build Rating . | . . . . . . . . . . . . . . Part Studies Acquired 3 | . . 1 . . 2 . . . . . . . . Parts Repaired 2 | . 1 . . . 1 . . . . . . . . Time 89 | . 38 . . . 51 . . . . . . . . Parts Recycled . | . . . . . . . . . . . . . . Recycled Matter . | . . . . . . . . . . . . . . Retrieved Matter . | . . . . . . . . . . . . . . Retrieved Components . | . . . . . . . . . . . . . . Parts Scanalyzed . | . . . . . . . . . . . . . . Part Schematics Acquired . | . . . . . . . . . . . . . . Parts Damaged . | . . . . . . . . . . . . . . Bothacking | -11 -10 -9 -9 -9 -8 -8 -7 -7 -7 -7 -7 -7 -6 ------------ Run | Yrd Mat Mat Sto Gar Mat Gar Fac Gar Fac Low Low Zio Pro Used RIF Installer 5 | . . . . 1 . 2 . 2 . . . . . Signal Jammer 1 | . . . . . . 1 . . . . . . . Watcher Feeds 1 | . . . . . . . . 1 . . . . . Alert ID Control 1 | . . . . . . . . 1 . . . . . Autooverride 1 | . . . . . . 1 . . . . . . . Robots Hacked 10 | . . . . . . 6 2 . . . . . 2 Non-combat . | . . . . . . . . . . . . . . Combat 10 | . . . . . . 6 2 . . . . . 2 Autooverrided 2 | . . . . . . . 1 . . . . . 1 Robot Hacks Applied 8 | . . . . . . 6 1 . . . . . 1 overwrite_iff 3 | . . . . . . 1 1 . . . . . 1 formatsys_high 5 | . . . . . . 5 . . . . . . . Relay Couplers Released 34 | . . . . 14 . 16 . 4 . . . . . Machine Destruction 34 | . . . . 14 . 16 . 4 . . . . . Attached 8 | . . . . . . 5 . . . . . . 3 Fabnet Peak Effective % . | . . . . . . . . . . . . . . Robots Rewired 5 | . . . . 4 . . 1 . . . . . . Allies Hacked . | . . . . . . . . . . . . . . Hacks Repelled . | . . . . . . . . . . . . . . Allies | -11 -10 -9 -9 -9 -8 -8 -7 -7 -7 -7 -7 -7 -6 -------- Run | Yrd Mat Mat Sto Gar Mat Gar Fac Gar Fac Low Low Zio Pro Total Allies 31 | . 1 . 12 4 . 7 4 . 1 . . . 2 Largest Group 10 | . 1 1 10 3 1 4 5 . 1 . . . 1 Highest-Rated Group 107 | . 10 10 88 31 21 82 107 . 10 . . . 12 Highest-Rated Ally 32 | . 10 10 31 31 21 31 32 . 10 . . . 12 Total Orders 13 | . 2 4 7 . . . . . . . . . . STAY 5 | . 1 1 3 . . . . . . . . . . ROAM 1 | . . 1 . . . . . . . . . . . FOLLOW 7 | . 1 2 4 . . . . . . . . . . Ally Attacks 170 | . . . 88 39 7 16 17 . . . . . 3 Total Damage 2293 | . . . 1087 448 174 220 318 . . . . . 46 Kills 31 | . . . 16 5 1 1 7 . . . . . 1 Allies Corrupted 2 | . . . . . . . 2 . . . . . . Allies Melted . | . . . . . . . . . . . . . . Intel | -11 -10 -9 -9 -9 -8 -8 -7 -7 -7 -7 -7 -7 -6 ------- Run | Yrd Mat Mat Sto Gar Mat Gar Fac Gar Fac Low Low Zio Pro Active Infowar (turns) 6504 | 20 610 186 . . 501 1261 524 127 106 846 797 193 1333 Optics 5676 | . . . . . 489 1261 524 127 106 846 797 193 1333 Sensors 2599 | . . . . . . . . . 75 804 797 193 730 Terrain 1955 | 20 610 186 . . 499 601 . . . 39 . . . Robot Analysis Total 2 | . 1 . 1 . . . . . . . . . . Derelict Logs Recovered 8 | . . . . . . . . . . 3 2 . 3 Drone Launches . | . . . . . . . . . . . . . . Drone Recoveries . | . . . . . . . . . . . . . . Exploration | -11 -10 -9 -9 -9 -8 -8 -7 -7 -7 -7 -7 -7 -6 ------------- Run | Yrd Mat Mat Sto Gar Mat Gar Fac Gar Fac Low Low Zio Pro Turns Passed 12851 | 84 739 1676 2987 1676 502 1261 524 127 106 846 797 193 1333 Spaces Moved 10241 | 48 427 796 1503 846 154 966 858 192 191 1361 995 372 1532 Core 679 | 3 . . . . . . 1 . . . . . 675 Treads 3581 | . . 651 1503 846 154 427 . . . . . . . Legs 617 | 45 427 145 . . . . . . . . . . . Wheels . | . . . . . . . . . . . . . . Hover 4261 | . . . . . . . 620 192 191 1361 995 372 530 Flight 1103 | . . . . . . 539 237 . . . . . 327 Fastest Speed 32 | 50 120 120 160 160 160 37 37 42 42 45 52 52 32 Average Speed 95 | 128 120 166 160 160 160 92 51 42 44 47 52 52 68 Slowest Speed 240 | 190 120 240 160 160 160 200 150 42 51 52 116 52 150 Overloaded Moves . | . . . . . . . . . . . . . . Propulsion Burnouts . | . . . . . . . . . . . . . . Robots Hopped . | . . . . . . . . . . . . . . Potential Cave-ins . | . . . . . . . . . . . . . . Cave-ins Triggered . | . . . . . . . . . . . . . . Exploration Rate (%) 54 | 3 53 50 96 84 20 83 20 43 5 95 95 14 98 Regions Visited 13 Branch Regions 5 Pre-discovered Areas 2 | . . . 1 . . . . . . 1 . . . Known Exits Taken 9 | . 1 1 1 . 1 . 1 . 1 1 1 1 . Unknown Exits Taken 1 | 1 . . . . . . . . . . . . . Scrap Searched 9 | . . . . . . . . . . 3 3 . 3 Spaces Dug 13 | . 2 . . . . 4 4 1 . 2 . . . Terrain Destroyed 86 | . 2 . 51 . 8 18 4 1 . 2 . . . Melee 11 | . . . . . . 4 4 1 . 2 . . . Projectile 3 | . 2 . 1 . . . . . . . . . . AOE 72 | . . . 50 . 8 14 . . . . . . . Terrain Rammed . | . . . . . . . . . . . . . . Walls Destroyed . | . . . . . . . . . . . . . . Machines Disabled . | . . . . . . . . . . . . . . Actions | -11 -10 -9 -9 -9 -8 -8 -7 -7 -7 -7 -7 -7 -6 --------- Run | Yrd Mat Mat Sto Gar Mat Gar Fac Gar Fac Low Low Zio Pro Total 12483 | 60 590 1018 1851 1070 393 1230 909 215 202 1547 1273 371 1754 Wait 1468 | . 112 132 170 129 218 110 11 4 . 166 271 . 145 Move 10230 | 47 426 795 1502 845 154 965 858 191 190 1360 994 371 1532 Hop . | . . . . . . . . . . . . . . Pick Up 44 | 3 7 4 9 2 3 9 . . . 3 . . 4 Fast Attach 84 | 7 6 10 15 1 3 10 12 . 5 4 4 . 7 Attach 18 | . . 2 . 1 2 4 1 . . 1 . . 7 Detach 18 | . 1 1 . . 2 5 . . 3 2 . . 4 Swap 35 | . 3 4 9 4 . 10 2 . . 3 . . . Drop 79 | . 5 12 23 3 3 12 8 . . 4 4 . 5 Fire 350 | 3 30 58 88 66 8 59 5 . . . . . 33 Melee 109 | . . . 35 12 . 14 12 11 4 4 . . 17 Ram . | . . . . . . . . . . . . . . Kick . | . . . . . . . . . . . . . . Crush . | . . . . . . . . . . . . . . Escape Stasis 48 | . . . . 7 . 32 . 9 . . . . . Rewire . | . . . . . . . . . . . . . . Trap . | . . . . . . . . . . . . . . Miscellaneous . | . . . . . . . . . . . . . . Route ------- -11/Scrapyard -10/Materials (discovered 3 exits: *Mat x2 / [*Min]) -9/Materials (discovered 6 exits: *Mat x3 / *Min x2 / *Sto) -9/Storage (discovered 2 exits: *Mat / Gar) -9/Garrison (discovered 3 exits: *Mat x3) -8/Materials -8/Garrison (discovered 3 exits: *Fac x3) -7/Factory -7/Garrison -7/Factory -7/Lower Caves -7/Lower Caves (discovered 2 exits: *Fac / *Zio) -7/Zion -6/Proximity Caves (discovered 1 exit: *Fac) History --------- Turn | Location | Event 25 | -11/Scrapyard | Discovered new exit (range 16) 85 | -11/Scrapyard | Entered Materials 217 | -10/Materials | Discovered new exit (range 9) 295 | -10/Materials | Discovered new exit (range 9) 307 | -10/Materials | Build established: Mutant 681 | -10/Materials | Repaired Imp. Terrain Scanner 729 | -10/Materials | Discovered new exit (range 4) 734 | -10/Materials | Identified exit to Materials 824 | -10/Materials | Entered another Materials area 824 | -9/Materials | Accompanied by 1 ally 824 | -9/Materials | Evolved 2 slots: Utility x1, Weapon x1 1234 | -9/Materials | Central database locked down 1266 | -9/Materials | Build established: Tank 1405 | -9/Materials | Discovered new exit (range 9) 1514 | -9/Materials | Discovered new exit (range 14) 1622 | -9/Materials | Discovered new exit (range 12) 1672 | -9/Materials | Identified exit to Materials 1691 | -9/Materials | Identified exit to Mines 1747 | -9/Materials | Discovered exit to Mines (range 13) 2498 | -9/Materials | Identified exit to Storage 2500 | -9/Materials | Entered Storage 2500 | -9/Storage | Accompanied by 1 ally 2878 | -9/Storage | Assisted by bots powering up and referring to "LRC-V3" 3180 | -9/Storage | Build established: Commander-Tank 3293 | -9/Storage | Garrison activated, responded to threat 3374 | -9/Storage | Lost 4 allies 3472 | -9/Storage | Identified exit to Garrison 3533 | -9/Storage | Lost 5 allies 3603 | -9/Storage | Garrison activated, responded to threat 3641 | -9/Storage | Discovered exit to Materials (range 15) 3663 | -9/Storage | Met a pair of Derelict thieves 4032 | -9/Storage | Learned location of Armory (-4) 4081 | -9/Storage | Build established: Scavenger-Tank 4489 | -9/Storage | Build established: Tank 4949 | -9/Storage | Build established: Mutant 5300 | -9/Storage | First assault squad dispatched 5312 | -9/Storage | Build established: Tank 5487 | -9/Storage | Entered Garrison 5487 | -9/Garrison | Accompanied by 1 ally 5627 | -9/Garrison | Triggered checkpoint 5655 | -9/Garrison | Garrison Relay disabled 5829 | -9/Garrison | Triggered checkpoint 6071 | -9/Garrison | Triggered checkpoint 6112 | -9/Garrison | Garrison Relay disabled 6161 | -9/Garrison | Discovered exit to Materials (range 10) 6207 | -9/Garrison | Triggered checkpoint 6489 | -9/Garrison | Triggered checkpoint 6520 | -9/Garrison | Garrison Relay disabled 6638 | -9/Garrison | Discovered exit to Materials (range 12) 6683 | -9/Garrison | Triggered checkpoint 6703 | -9/Garrison | Triggered checkpoint 6721 | -9/Garrison | Garrison Relay disabled 6966 | -9/Garrison | Core integrity fell below 50% 7055 | -9/Garrison | Triggered checkpoint 7132 | -9/Garrison | Installed Relay Interface Framework 7144 | -9/Garrison | Discovered exit to Materials (range 12) 7163 | -9/Garrison | Entered Materials 7163 | -8/Materials | Accompanied by 1 ally 7163 | -8/Materials | Evolved 2 slots: Utility x2 7235 | -8/Materials | Repaired Imp. EM Shotgun 7280 | -8/Materials | Central database locked down 7527 | -8/Materials | Build established: Skirmisher 7563 | -8/Materials | First assault squad dispatched 7665 | -8/Materials | Identified exit to Garrison 7665 | -8/Materials | Entered Garrison 7665 | -8/Garrison | Accompanied by 1 ally 7785 | -8/Garrison | Triggered checkpoint 7843 | -8/Garrison | Garrison Relay disabled 7979 | -8/Garrison | Triggered checkpoint 8243 | -8/Garrison | Garrison Relay disabled 8256 | -8/Garrison | Triggered checkpoint 8302 | -8/Garrison | Expanded RIF knowledge: Signal Jamming 8325 | -8/Garrison | Discovered new exit (range 3) 8328 | -8/Garrison | Identified exit to Factory 8471 | -8/Garrison | Triggered checkpoint 8480 | -8/Garrison | Triggered checkpoint 8618 | -8/Garrison | Expanded RIF knowledge: Autooverride 8623 | -8/Garrison | Triggered checkpoint 8628 | -8/Garrison | Garrison Relay disabled 8640 | -8/Garrison | Discovered exit to Factory (range 12) 8655 | -8/Garrison | Rescued a captive Derelict 8707 | -8/Garrison | Triggered checkpoint 8717 | -8/Garrison | Garrison Relay disabled 8741 | -8/Garrison | Discovered exit to Factory (range 19) 8924 | -8/Garrison | Build established: Bothacker-Mutant 8926 | -8/Garrison | Entered Factory 8926 | -7/Factory | Accompanied by 4 allies 8926 | -7/Factory | Evolved 2 slots: Propulsion x1, Utility x1 9322 | -7/Factory | Lost 4 allies 9326 | -7/Factory | First assault squad dispatched 9450 | -7/Factory | Identified exit to Garrison 9450 | -7/Factory | Entered Garrison 9457 | -7/Garrison | Expanded RIF knowledge: Alert ID Control 9468 | -7/Garrison | Triggered checkpoint 9488 | -7/Garrison | Garrison Relay disabled 9501 | -7/Garrison | Expanded RIF knowledge: Watcher Feeds 9522 | -7/Garrison | Triggered checkpoint 9573 | -7/Garrison | Discovered new exit (range 11) 9576 | -7/Garrison | Identified exit to Factory 9577 | -7/Garrison | Entered Factory 9656 | -7/Factory | Discovered new exit (range 13) 9665 | -7/Factory | Identified exit to Lower Caves 9674 | -7/Factory | Core integrity fell below 50% 9683 | -7/Factory | Entered Lower Caves 9780 | -7/Lower Caves | Learned location of Zion (-7) 9791 | -7/Lower Caves | Spotted B-75 Beast 10088 | -7/Lower Caves | Encountered a Warlord checkpoint 10147 | -7/Lower Caves | Build established: Scout 10450 | -7/Lower Caves | Learned Factory garrison access intel 10493 | -7/Lower Caves | Discovered new exit (range 13) 10512 | -7/Lower Caves | Identified exit to Lower Caves 10529 | -7/Lower Caves | Entered another Lower Caves area 10558 | -7/Lower Caves | Discovered new exit (range 20) 10599 | -7/Lower Caves | Identified exit to Factory 10757 | -7/Lower Caves | Learned Factory terminal intel 10843 | -7/Lower Caves | Encountered a Warlord checkpoint 10849 | -7/Lower Caves | Learned location of 1 exit from Factory 11314 | -7/Lower Caves | Discovered new exit (range 7) 11317 | -7/Lower Caves | Identified exit to Zion 11326 | -7/Lower Caves | Entered Zion 11376 | -7/Zion | Discovered new exit (range 8) 11380 | -7/Zion | Identified exit to Proximity Caves 11478 | -7/Zion | System corruption cleaned by Quarantine Array 11481 | -7/Zion | RIF detected upon attempting to enter Zion 11481 | -7/Zion | Attacked by Zionites 11481 | -7/Zion | Spotted 92-BI1(B) 11481 | -7/Zion | Spotted H5-96W(B) 11519 | -7/Zion | Entered Proximity Caves 11659 | -6/Proximity Caves | Learned Factory trap positions 11829 | -6/Proximity Caves | Build established: Gladiator 12185 | -6/Proximity Caves | Ambushed by research squad 12250 | -6/Proximity Caves | Attracted the attention of an 0b10 checkpoint 12280 | -6/Proximity Caves | Lost 3 parts (2n1u) 12298 | -6/Proximity Caves | Learned location of 1 exit from Factory 12309 | -6/Proximity Caves | Discovered exit to Factory (range 11) 12540 | -6/Proximity Caves | Build established: Mutant 12631 | -6/Proximity Caves | Core integrity fell below 20% 12798 | -6/Proximity Caves | Found Alien Artifact 12798 | -6/Proximity Caves | Identified Dimensional Node Initializer 12798 | -6/Proximity Caves | Initialized slip node 12852 | -6/Proximity Caves | Core destroyed Last Messages --------------- 12769_ Acquired 13 matter. 12771_ Acquired 2 matter. 12781_ Acquired 27 matter. 12781_ Acquired 25 matter. 12783_ /A=0MNZY9KVUO%J>EVJVOTBH72W M 12793_ Sealed Doors breached. 12797_ Connecting with Private... >>Record "Note to 6F-MQ2" I took this from a Hauler that was behaving strangely. This was all it had in its inventory, and to be sure I also checked the local manifest, but found it wasn't even listed! See what you can make of it. 12798_ Acquired Alien Artifact. 12798_ Identified Dimensional Node Initializer. 12798_ Initializer activates and latches into the ground. 12800_ Connecting with Private... 12814_ System corrupted: Heat flow error (+262). 12821_ Dropped Great Maul. 12823_ Acquired Great Maul. 12831_ System corrupted: Matter fused (-5). 12852_ Dimensional Slip Node implodes. Map ----- +----------------------------------------------------+ | ####??????????????????????????????????????????? | | ##?????????????????????????????????????????? | | #?????????????????????????????????????????? | | #?????????????????????????????????????????? | | #?????????????????????????????????????????? | | ##?????????????????????????????????????????? | | ##??????????????????????????????????????????? | | #####???????????????????????????????????????????? | | #???????????????????????????????????????????????? | | ##??????????????????????????????????????????????? | | #??????????????????????????????????????????????? | | ##??????????????????????????????????????????????? | | ##???????????????????????????????????????????????? | | #????????????????????????????????????????????????? | | ####?????????????????????????????????????????????? | | #?????????????????????????????????????????????? | | ##?????????????????????????????????????????????? | | ##??????????????????????????????????????????????? | | #???????????????????????????????????????????????? | | ###?????????????????????????????????????????????? | | #?????????????????????????????????????????????? | | # #?????????????????????????????????????????????? | | # #?????????????????????????????????????????????? | | # #?????????????????????????????????????????????? | | # #???????????????????#####?????????????????????? | | # #???????????????????# @X#?????????????????????? | | # #???????????????????# #?????????????????????? | | # #???????????????????#" "#?????????????????????? | | # #?????????????????####]###????????????????????? | | # #?????####????????# # # ####????????????####?? | | # ###??## ##??????## #######?????## #?? | | # ##?# ##????## ##??### #?? | | #?# #????# ## ##?# #?? | | #?# #????# ## ### ##### ##? | | ## #?## #?#### #### #### ##?## ## | | ## ##### ##?# #??## #?# #?## # | | #### ##??## ##??# ### ### ## | | ### ##???# #??# ## #? | | #???# #####??# ## #? | | # ##???# #??????# ## | | # ##?#### #??????# ### # | | ## #?## ## #??????# ###### ### # | | ?## #?# ##?????# ##??#####?## | | ??## ###?# #?????#### #????######## | | ???# #???## #????????#### #????# #### | | #?## ##???# #???????????# #????# ### | | ### ##### #???????????# #?????# # | | #???????????# #????## | | #???????????# #????# | | ## ##??????????# ##???# # | +----------------------------------------------------+ Best States ------------- Heat Dissipation 34 Energy Generation 16 Energy Capacity 290 Matter Stores 300 Matter Capacity 300 Sight Range 20 Robot Scan Range 15 Terrain Scan Range 16 Terrain Scan Density 85 Armor Coverage 225 Evasion (%) 63 Melee Accuracy 6 Recoil Reduction 2 Relay Coupler Types 2 Relay Coupler Value 54 Authchip Count 2 Item Schematics ----------------- Adv. Weight Redist. System | -9/Storage | Hacked Robot Schematics ------------------ None Fabricated ------------ Nothing Repaired ---------- Imp. Terrain Scanner | 13% | -10/Materials Imp. EM Shotgun | 31% | -8/Materials Studied --------- Lgt. Treads | -9/Materials | Hacked Imp. Treads | -8/Materials | Hacked Katana | -8/Materials | Hacked Alien Tech Used ----------------- Dimensional Node Initializer Achievements -------------- Hammer Time Challenges ------------ None Game ------ Seed AntimissileAlphaLog Manual? 0 Play Time 02:08:55 Cumulative 63.9 hours Start 2025.12.28 @ 17:28:11 End 2025.12.28 @ 23:02:22 Sessions 3 Manual Loads 0 Difficulty Rogue Special Mode None Game No. 57 Rogue 57 Adventurer 0 Explorer 0 Win Type - Total 1 Types 0/0/0/1/0/0/0/0/0/0 Lore% 42 Gallery% 45 Achievement% 35 Wizard Run 0 Options --------- Layout 0 ASCII 0 Keyboard 0 Movement Mouse Keybinds 0 Fullscreen 2 Font 24/Smallcaps Map View 76x50 Zoom Use 0% Tactical HUD 1 Map Filters NONE Filters NONE Steam 1 RUN: c9985c1a-790b-4bbd-b7ee-ebaadc50c989